bitfinex-derivatives/quotes_BNBF0:USTF0_20260221
["timestamp","ask_amount","ask_price","bid_price","bid_amount"]
[1771676500261,1.18800084,629.85,629.31,1.1902493]
[1771676508366,1.18800084,629.85,629.32,1.1902493]
[1771676509268,1.5869161,629.96,629.27,1.108]
[1771676509565,1.1888761,629.85,629.32,1.19157447]
[1771676524285,1.1888761,629.84,629.32,1.19157447]
[1771676531293,1.18912195,629.84,629.32,1.19188044]
[1771676539404,1.5869161,629.95,629.24,1.1]
[1771676539703,1.18932935,629.84,629.32,1.19188104]
[1771676547508,1.5869161,629.95,629.24,1.1]
[1771676547706,1.18933002,629.84,629.32,1.19188063]
[1771676549511,1.18933002,629.83,629.31,1.19188063]
[1771676550317,1.18933002,629.83,629.3,1.19188063]
[1771676555721,1.5869161,629.95,629.24,1.1]
[1771676556016,1.18916603,629.83,629.3,1.19161128]
[1771676561327,1.18916603,629.84,629.3,1.19161128]
[1771676576539,1.18916603,629.84,629.31,1.544]
[1771676590348,1.18916603,629.84,629.31,2.73561128]
[1771676591550,1.18916603,629.83,629.31,1.544]
[1771676592455,1.18916603,629.83,629.31,2.73561128]
[1771676621381,1.18916603,629.84,629.32,1.19161128]
[1771676623783,1.5869161,629.95,629.31,1.544]
[1771676623784,1.18916603,629.87,629.35,1.19161128]
[1771676623979,1.18916603,629.89,629.37,1.19161128]
[1771676624480,1.18916603,629.9,629.36,1.19161128]
[1771676626486,1.18916603,629.91,629.35,1.19161128]
[1771676627286,1.18916603,629.91,629.36,1.19161128]
[1771676627488,1.18916603,629.92,629.36,1.19161128]
[1771676628383,1.18916603,629.92,629.35,1.19161128]
[1771676631790,1.18916603,629.93,629.35,1.19161128]
[1771676634291,1.18916603,629.93,629.34,1.19161128]
[1771676634789,1.18916603,629.92,629.33,1.19161128]
[1771676637390,1.18916603,629.92,629.34,1.306]
[1771676645101,1.18916603,629.89,629.34,1.306]
[1771676645399,1.18916603,629.83,629.34,1.306]
[1771676649201,1.18916603,629.84,629.34,1.306]
[1771676651502,1.18916603,629.83,629.34,1.306]
[1771676653304,1.18916603,629.82,629.34,1.306]
[1771676654099,1.18916603,629.74,629.34,1.306]
[1771676655000,1.18916603,629.73,629.34,1.306]
[1771676655300,1.18916603,629.74,629.34,1.306]
[1771676656202,1.18916603,629.75,629.34,1.306]
[1771676658206,1.18916603,629.76,629.34,1.306]
[1771676660207,1.18916603,629.77,629.34,1.306]
[1771676662013,1.18916603,629.73,629.34,1.306]
[1771676663219,1.18916603,629.74,629.34,1.306]
[1771676665221,1.18916603,629.75,629.34,1.306]
[1771676667121,1.18916603,629.76,629.34,1.306]
[1771676671125,1.18916603,629.77,629.34,1.306]
[1771676679328,1.18916603,629.76,629.34,1.306]
[1771676682431,1.18916603,629.75,629.34,1.306]
[1771676684334,1.18916603,629.74,629.34,1.306]
[1771676684531,1.18916603,629.74,629.18,0.27640217]
[1771676687137,1.18916603,629.73,629.18,0.27640217]
[1771676687433,1.18916603,629.73,629.19,1.316]
[1771676687637,1.18916603,629.71,629.19,1.316]
[1771676687933,0.27634181,630.3,629.19,1.316]
[1771676687934,1.18916603,629.66,629.19,1.316]
[1771676689237,1.18362023,629.65,629.19,1.316]
[1771676691237,1.18362023,629.64,629.19,1.316]
[1771676695038,1.18362023,629.63,629.19,1.316]
[1771676696333,1.18362023,629.62,629.19,1.316]
[1771676697236,1.5869161,629.73,629.19,1.316]
[1771676697434,1.18520451,629.61,629.19,1.316]
[1771676698233,1.18520451,629.6,629.19,1.316]
[1771676698436,1.18520451,629.61,629.19,1.316]
[1771676701335,1.18520451,629.64,629.19,1.316]
[1771676702935,1.18520451,629.66,629.19,1.316]
[1771676703141,1.18520451,629.68,629.19,1.316]
[1771676707242,1.18520451,629.74,629.19,1.316]
[1771676708438,1.18520451,629.75,629.19,1.316]
[1771676711541,1.18520451,629.76,629.19,1.316]
[1771676712341,1.18520451,629.77,629.19,1.316]
[1771676718147,1.18520451,629.78,629.19,1.316]
[1771676721250,1.18520451,629.78,629.12,1.18988335]
[1771676723152,1.18520451,629.78,629.11,1.18988335]
[1771676724951,1.18520451,629.78,629.12,1.466]
[1771676726156,1.18520451,629.79,629.12,1.466]
[1771676732467,1.18520451,629.85,629.17,1.18988335]
[1771676732665,1.18520451,629.86,629.18,1.18988335]
[1771676733361,1.18520451,629.87,629.18,1.18988335]
[1771676734173,1.18520451,629.86,629.18,1.18988335]
[1771676734369,1.18520451,629.87,629.18,1.18988335]
[1771676735071,1.18520451,629.86,629.18,1.18988335]
[1771676735272,1.18520451,629.87,629.18,1.18988335]
[1771676738176,1.18520451,629.86,629.18,1.18988335]
[1771676738372,1.18520451,629.87,629.18,1.18988335]
[1771676739173,1.18520451,629.86,629.18,1.18988335]
[1771676741174,1.18520451,629.86,629.19,1.18988335]
[1771676741575,1.18520451,629.86,629.18,1.18988335]
[1771676742279,1.18520451,629.85,629.19,1.18988335]
[1771676744081,1.18520451,629.84,629.2,1.18988335]
[1771676746282,1.18520451,629.85,629.2,1.18988335]
[1771676746583,1.18520451,629.84,629.2,1.18988335]
[1771676749286,1.18520451,629.84,629.21,1.18988335]
[1771676750282,1.18520451,629.83,629.21,1.18988335]
[1771676751991,1.18593399,629.83,629.21,1.18978112]
[1771676759098,1.18593399,629.88,629.26,1.18978112]
[1771676759499,1.18593399,629.89,629.27,1.18978112]
[1771676763398,1.18593399,629.9,629.27,1.18978112]
[1771676763898,1.18593399,629.97,629.34,1.18978112]
[1771676764402,1.18593399,629.97,629.33,1.18978112]
[1771676765403,1.18593399,629.98,629.33,1.18978112]
[1771676766304,1.18593399,629.98,629.32,1.18978112]
[1771676768405,1.18593399,629.99,629.32,1.18978112]
[1771676769301,1.18593399,629.99,629.31,1.18978112]
[1771676770307,1.18593399,630.01,629.33,1.18978112]
[1771676771405,1.18593399,630.02,629.33,1.18978112]
[1771676771807,1.18593399,630.02,629.34,1.18978112]
[1771676773406,1.18593399,630.03,629.34,1.18978112]
[1771676775309,1.18593399,630.03,629.33,1.18978112]
[1771676776206,1.18593399,630.02,629.34,1.18978112]
[1771676776405,1.18593399,630.03,629.34,1.18978112]
[1771676777309,1.18593399,630.02,629.34,1.18978112]
[1771676777610,1.18593399,630.03,629.34,1.18978112]
[1771676778510,1.18593399,630.03,629.33,1.18978112]
[1771676782914,0.27634181,630.3,629.34,1.18978112]
[1771676782915,1.18593399,630.04,629.34,1.18978112]
[1771676783816,1.18593399,630.04,629.35,1.768]
[1771676785313,1.18593399,630.05,629.35,1.768]
[1771676787325,1.18593399,630.04,629.35,1.768]
[1771676788913,1.18593399,630.08,629.37,1.18978112]
[1771676790219,1.18593399,630.07,629.37,1.18978112]
[1771676790419,1.18593399,630.08,629.37,1.18978112]
[1771676791320,1.18593399,630.1,629.4,1.18978112]
[1771676791618,1.18593399,630.11,629.4,1.18978112]
[1771676792328,2.38037415,630.33,629.35,1.768]
[1771676792329,1.18593399,630.14,629.43,1.18978112]
[1771676793215,1.18593399,630.15,629.44,1.18978112]
[1771676794320,1.18593399,630.16,629.44,1.18978112]
[1771676795317,1.18593399,630.15,629.44,1.18978112]
[1771676795517,1.18593399,630.16,629.44,1.18978112]
[1771676796316,1.18593399,630.19,629.47,1.18978112]
[1771676801729,2.38037415,630.41,629.35,1.768]
[1771676801730,1.18593399,630.2,629.48,1.18978112]
[1771676802225,1.18593399,630.2,629.37,1.58072704]
[1771676802226,1.18593399,630.2,629.49,1.18978112]
[1771676804332,1.18593399,630.19,629.49,1.18978112]
[1771676805332,1.18593399,630.2,629.49,1.18978112]
[1771676806334,1.18593399,630.19,629.49,1.18978112]
[1771676808434,1.18593399,630.19,629.5,1.18978112]
[1771676819447,1.18593399,630.18,629.5,1.18978112]
[1771676822249,1.18593399,630.18,629.51,1.18978112]
[1771676822954,1.18593399,630.17,629.49,1.18978112]
[1771676823450,1.18593399,630.16,629.49,1.18978112]
[1771676824454,1.18593399,630.15,629.49,1.18978112]
[1771676824854,1.18593399,630.12,629.46,1.18978112]
[1771676825050,1.18593399,630.04,629.37,1.18978112]
[1771676825950,1.18593399,629.95,629.28,1.18978112]
[1771676826152,1.18593399,629.95,629.27,1.18978112]
[1771676827258,1.18593399,629.96,629.27,1.18978112]
[1771676828154,1.18593399,629.96,629.26,1.18978112]
[1771676828458,1.18593399,629.95,629.25,1.18978112]
[1771676829158,1.18593399,629.92,629.2,1.18978112]
[1771676829654,2.38037415,630.14,629.06,0.27645486]
[1771676829655,1.18593399,629.87,629.16,1.18978112]
[1771676830155,1.18593399,629.89,629.15,1.18978112]
[1771676830558,1.5869161,630.0,629.06,0.27645486]
[1771676830559,1.18593399,629.85,629.11,1.18978112]
[1771676830760,1.18593399,629.83,629.09,1.18978112]
[1771676830959,1.18593399,629.82,629.08,1.18978112]
[1771676831255,1.18593399,629.84,629.06,1.46623598]
[1771676831756,1.18593399,629.83,629.06,1.46623598]
[1771676832155,2.38037415,630.06,629.06,1.46623598]
[1771676832156,1.18593399,629.85,629.06,0.27645486]
[1771676832960,1.18593399,629.82,629.06,0.27645486]
[1771676833158,1.18593399,629.84,629.06,0.27645486]
[1771676833360,0.2762727,630.46,629.06,0.27645486]
[1771676833361,1.18593399,629.82,629.06,0.27645486]
[1771676833755,1.18593399,629.82,629.07,1.184]
[1771676834160,1.18593399,629.84,629.07,1.184]
[1771676835157,1.18593399,629.85,629.07,1.184]
[1771676835857,0.2762727,630.46,629.07,1.184]
[1771676835858,1.18593399,629.86,629.07,1.184]
[1771676837162,1.18593399,629.87,629.07,1.184]
[1771676837562,1.18593399,629.88,629.07,1.184]
[1771676838160,1.18593399,629.89,629.07,1.184]
[1771676839062,1.18593399,629.91,629.07,1.184]
[1771676840161,0.2762727,630.46,629.07,1.184]
[1771676840162,1.18593399,629.93,629.07,1.184]
[1771676840861,1.18593399,629.95,629.07,1.184]
[1771676841357,1.18593399,629.96,629.07,1.184]
[1771676842060,1.18593399,629.97,629.07,1.184]
[1771676843863,1.18593399,630.05,629.07,2.37378112]
[1771676849168,1.18593399,630.05,629.08,1.18978112]
[1771676850272,1.18593399,630.04,629.08,1.18978112]
[1771676851472,1.18593399,630.03,629.07,2.37378112]
[1771676852072,1.18593399,630.0,629.07,1.184]
[1771676852270,1.18593399,629.93,629.07,1.184]
[1771676853268,1.18593399,629.92,629.07,1.184]
[1771676856379,1.18593399,629.89,629.07,1.184]
[1771676857974,1.18593399,629.88,629.07,1.184]
[1771676859678,1.17928658,629.88,629.07,1.184]
[1771676860279,1.5869161,629.99,629.07,1.184]
[1771676860280,1.17928658,629.87,629.07,1.184]
[1771676861778,1.17928658,629.86,629.07,1.184]
[1771676862480,1.17928658,629.85,629.07,1.184]
[1771676863379,1.17928658,629.84,629.07,1.184]
[1771676864383,1.17928658,629.83,629.07,1.184]
[1771676865785,1.17928658,629.83,629.06,0.27645486]
[1771676866182,1.17928658,629.82,629.06,0.27645486]
[1771676867079,1.17928658,629.81,629.06,0.27645486]
[1771676868186,1.17928658,629.79,629.06,0.27645486]
[1771676869284,1.17928658,629.77,629.07,1.635]
[1771676870082,1.17928658,629.76,629.07,2.81837423]
[1771676872183,1.17928658,629.75,629.08,1.18337423]
[1771676872383,1.17928658,629.77,629.1,1.18337423]
[1771676874184,1.17928658,629.76,629.11,1.18337423]
[1771676874483,1.17928658,629.77,629.11,1.18337423]
[1771676875691,1.17928658,629.8,629.15,1.18337423]
[1771676876791,1.17928658,629.92,629.26,1.18337423]
[1771676878194,1.17928658,629.93,629.25,1.18337423]
[1771676882193,1.17928658,629.94,629.24,1.18337423]
[1771676882492,1.17928658,629.94,629.25,1.18337423]
[1771676883296,1.17928658,629.95,629.25,1.18337423]
[1771676885198,1.17928658,629.95,629.24,1.18337423]
[1771676887202,1.17928658,629.96,629.24,1.18337423]
[1771676890302,1.17928658,629.96,629.23,1.18337423]
[1771676895300,1.17928658,629.96,629.22,1.18337423]
[1771676897106,1.17928658,629.97,629.22,1.18337423]
[1771676897306,1.17928658,630.01,629.27,1.18337423]
[1771676898305,1.17928658,630.03,629.28,1.18337423]
[1771676899205,1.17928658,630.03,629.27,1.18337423]
[1771676901309,1.17928658,630.02,629.26,1.18337423]
[1771676901609,1.17928658,629.97,629.2,1.18337423]
[1771676902108,1.17928658,629.96,629.2,1.18337423]
[1771676902308,1.17928658,629.96,629.21,1.18337423]
[1771676907105,1.5869161,630.07,629.21,1.18337423]
[1771676907106,1.17928658,629.95,629.21,1.18337423]
[1771676907409,1.17928658,629.95,629.22,1.18337423]
[1771676908811,1.17928658,629.96,629.23,1.18337423]
[1771676910207,1.17928658,630.0,629.28,1.18337423]
[1771676911209,1.17928658,630.0,629.29,1.18337423]
[1771676912814,1.17928658,630.05,629.34,1.18337423]
[1771676913115,1.17928658,630.05,629.35,1.18337423]
[1771676913312,1.17928658,630.05,629.34,1.18337423]
[1771676914112,1.17928658,630.05,629.35,1.18337423]
[1771676914312,1.17928658,630.01,629.31,1.18337423]
[1771676916319,1.17928658,630.01,629.2,1.58072704]
[1771676916320,1.17928658,630.0,629.32,2.26437423]
[1771676917217,1.17928658,629.99,629.33,1.18337423]
[1771676919117,1.17928658,629.98,629.34,1.18337423]
[1771676919920,1.17928658,630.0,629.36,1.18337423]
[1771676920220,1.17928658,629.99,629.37,1.18337423]
[1771676921120,1.17928658,629.99,629.38,1.18337423]
[1771676922022,1.17928658,629.98,629.37,1.18337423]
[1771676922318,1.17928658,629.99,629.38,1.18337423]
[1771676922719,1.17928658,630.01,629.39,1.18337423]
[1771676923522,1.17928658,630.03,629.42,1.18337423]
[1771676923721,1.17928658,629.96,629.34,1.18337423]
[1771676928227,1.17928658,629.9,629.32,1.081]
[1771676934034,1.17928658,629.93,629.32,1.081]
[1771676934232,1.17928658,629.93,629.32,2.26437423]
[1771676937332,1.17928658,629.91,629.32,1.081]
[1771676938334,1.17928658,629.9,629.32,1.081]
[1771676939338,1.17928658,629.86,629.32,1.081]
[1771676940537,1.17928658,629.85,629.32,1.081]
[1771676940734,1.17928658,629.86,629.32,1.081]
[1771676946237,1.5869161,629.98,629.32,1.081]
[1771676946238,1.17928658,629.87,629.32,1.081]
[1771676946739,1.17928658,629.85,629.32,1.081]
[1771676949443,1.17928658,629.89,629.32,1.081]
[1771676951941,1.17928658,629.91,629.32,1.081]
[1771676952843,1.17928658,629.86,629.32,1.081]
[1771676953046,1.17928658,629.83,629.32,1.081]
[1771676953346,1.17928658,629.84,629.32,1.081]
[1771676961954,1.17928658,629.77,629.32,1.081]
[1771676962253,1.17928658,629.78,629.32,1.081]
[1771676962552,1.17928658,629.76,629.32,1.081]
[1771676963248,1.17928658,629.77,629.32,1.081]
[1771676965052,1.17928658,629.76,629.32,1.081]
[1771676965457,1.17928658,629.7,629.32,1.081]
[1771676965956,1.17928658,629.69,629.32,1.081]
[1771676966257,1.17928658,629.7,629.32,1.081]
[1771676968356,1.17928658,629.71,629.32,1.081]
[1771676970360,1.17928658,629.7,629.32,1.081]
[1771676971257,1.5869161,629.82,629.32,1.081]
[1771676971258,1.17928658,629.71,629.32,1.081]
[1771676971862,1.17928658,629.7,629.32,1.081]
[1771676972059,1.17928658,629.77,629.32,1.081]
[1771676972263,1.17928658,629.77,629.09,0.27642741]
[1771676972563,0.2762727,630.46,629.09,0.27642741]
[1771676972564,1.17928658,629.78,629.09,0.27642741]
[1771676972858,1.17928658,629.79,629.09,0.27642741]
[1771676973764,1.17928658,629.82,629.09,1.45980164]
[1771676975063,1.17928658,629.82,629.1,1.109]
[1771676975264,1.17928658,629.81,629.1,1.109]
[1771676978163,1.17928658,629.8,629.1,1.109]
[1771676979467,0.2762727,630.46,629.1,1.109]
[1771676979468,1.17928658,629.79,629.1,1.109]
[1771676981168,1.17928658,629.78,629.1,1.109]
[1771676983367,1.17928658,629.77,629.1,1.109]
[1771676989975,1.17928658,629.77,629.09,1.45980164]
[1771676992180,1.17928658,629.76,629.09,1.45980164]
[1771676993178,1.17928658,629.76,629.1,1.298]
[1771676993381,1.17928658,629.77,629.1,2.48137423]
[1771676995379,1.17928658,629.76,629.1,2.48137423]
[1771676996276,1.17928658,629.76,629.11,1.18337423]
[1771676997282,1.5869161,629.87,629.11,1.18337423]
[1771676997283,1.17928658,629.75,629.11,1.18337423]
[1771676999181,1.17928658,629.75,629.12,1.18337423]
[1771677002293,1.17928658,629.74,629.12,1.18337423]
[1771677004189,1.17928658,629.74,629.13,1.18337423]
[1771677004993,1.17928658,629.73,629.12,1.18337423]
[1771677005290,1.17928658,629.73,629.13,1.18337423]
[1771677005492,2.38037415,629.96,629.13,1.18337423]
[1771677005493,1.17928658,629.74,629.13,1.18337423]
[1771677006190,1.17928658,629.73,629.13,1.18337423]
[1771677011298,1.17928658,629.73,629.14,1.18337423]
[1771677013300,1.17928658,629.72,629.14,1.18337423]
[1771677014197,1.17928658,629.72,629.15,1.18337423]
[1771677014700,1.17928658,629.71,629.14,1.18337423]
[1771677015299,1.17928658,629.71,629.15,1.18337423]
[1771677016305,1.17928658,629.7,629.16,1.18337423]
[1771677017806,1.17928658,629.7,629.17,1.345]
[1771677019307,1.17928658,629.69,629.17,1.345]
[1771677022208,1.17928658,629.65,629.17,1.345]
[1771677022509,1.17928658,629.64,629.17,1.345]
[1771677023209,1.17928658,629.62,629.17,1.345]
[1771677023408,1.17928658,629.63,629.17,1.345]
[1771677024308,1.17928658,629.64,629.17,1.345]
[1771677025610,1.17928658,629.63,629.17,1.345]
[1771677026410,1.17928658,629.61,629.17,1.345]
[1771677027311,1.17928658,629.62,629.17,1.345]
[1771677029309,1.17928658,629.56,629.17,1.345]
[1771677030208,1.17928658,629.57,629.17,1.345]
[1771677032315,1.17928658,629.58,629.17,1.345]
[1771677032809,1.17928658,629.61,629.17,1.345]
[1771677033909,1.17928658,629.59,629.17,1.345]
[1771677035314,1.17928658,629.6,629.17,1.345]
[1771677036010,1.17928658,629.61,629.17,1.345]
[1771677039318,1.17928658,629.62,629.17,1.345]
[1771677047219,1.17928658,629.67,629.17,1.345]
[1771677049219,1.17928658,629.65,629.17,1.345]
[1771677049422,1.17928658,629.5,629.17,1.345]
[1771677050522,1.5869161,629.61,629.17,1.345]
[1771677050825,1.18442048,629.5,629.17,1.345]
[1771677051026,1.18442048,629.51,629.17,1.345]
[1771677052026,1.18442048,629.56,629.17,1.345]
[1771677059830,1.18442048,629.56,628.92,0.27648781]
[1771677060230,1.18442048,629.55,628.92,0.27648781]
[1771677060526,1.18442048,629.57,628.92,0.27648781]
[1771677060726,1.18442048,629.62,628.92,0.27648781]
[1771677062126,1.18442048,629.63,628.93,1.1885512]
[1771677062330,1.18442048,629.63,628.93,2.6615512]
[1771677063330,1.18442048,629.62,628.94,1.1885512]
[1771677065234,1.18442048,629.61,628.95,1.1885512]
[1771677066235,1.18442048,629.61,628.96,1.1885512]
[1771677067231,1.18442048,629.6,628.96,1.1885512]
[1771677069335,1.18442048,629.59,628.95,1.1885512]
[1771677069537,1.18442048,629.55,628.93,1.473]
[1771677071246,1.5869161,629.66,628.93,1.473]
[1771677071247,1.18442048,629.54,628.93,1.473]
[1771677071946,1.18442048,629.5,628.93,1.473]
[1771677075445,1.18442048,629.52,628.93,1.473]
[1771677087963,1.18442048,629.51,628.93,1.473]
[1771677088458,1.18442048,629.48,628.93,1.473]
[1771677090760,1.18442048,629.47,628.93,1.473]
[1771677090955,1.18442048,629.46,628.93,1.473]
[1771677091358,1.18442048,629.41,628.93,1.473]
[1771677091859,1.18442048,629.4,628.93,1.473]
[1771677092055,1.18442048,629.37,628.93,1.473]
[1771677092354,1.18442048,629.38,628.93,1.473]
[1771677093155,1.18442048,629.37,628.93,1.473]
[1771677093357,1.18442048,629.38,628.93,1.473]
[1771677095162,1.18442048,629.25,628.93,1.473]
[1771677095360,1.18442048,629.27,628.93,1.473]
[1771677096262,1.18442048,629.28,628.93,1.473]
[1771677096761,1.18442048,629.26,628.93,1.473]
[1771677097460,3.96671646,629.94,628.93,1.473]
[1771677097461,1.18442048,629.27,628.93,1.473]
[1771677098464,1.18442048,629.28,628.93,1.473]
[1771677099262,1.18442048,629.29,628.93,1.473]
[1771677100263,1.18442048,629.3,628.93,1.473]
[1771677101465,1.18442048,629.31,628.93,1.473]
[1771677102466,1.18442048,629.32,628.93,1.473]
[1771677102761,1.18442048,629.4,628.93,1.473]
[1771677103567,1.18442048,629.42,628.93,1.473]
[1771677103968,1.18442048,629.43,628.93,1.473]
[1771677104767,1.18442048,629.46,628.93,1.473]
[1771677113468,1.18442048,629.45,628.93,1.473]
[1771677119271,1.18442048,629.44,628.93,1.473]
[1771677123377,1.18442048,629.46,628.93,1.473]
[1771677123977,1.18442048,629.46,628.64,0.27662078]
[1771677125678,1.18442048,629.47,628.64,0.27662078]
[1771677126477,1.18442048,629.48,628.64,0.27662078]
[1771677127384,1.18442048,629.47,628.64,0.27662078]
[1771677128882,1.18442048,629.48,628.64,0.27662078]
[1771677129386,1.18442048,629.47,628.64,0.27662078]
[1771677129586,1.18389097,629.56,628.71,1.58072704]
[1771677130683,1.18389097,629.56,628.72,1.771]
[1771677132084,1.18389097,629.56,628.72,3.35172704]
[1771677134190,1.18389097,629.56,628.72,1.771]
[1771677134391,1.18389097,629.56,628.72,3.35172704]
[1771677135289,1.18389097,629.56,628.72,1.771]
[1771677136085,1.18389097,629.56,628.72,3.35172704]
[1771677136289,1.18389097,629.57,628.72,1.771]
[1771677137287,1.18389097,629.56,628.72,1.771]
[1771677139291,1.18389097,629.57,628.72,1.771]
[1771677141288,1.18389097,629.56,628.72,1.771]
[1771677144293,1.18389097,629.55,628.72,1.771]
[1771677144592,1.18389097,629.51,628.72,1.771]
[1771677146394,1.18389097,629.5,628.72,1.771]
[1771677147399,1.18389097,629.49,628.72,1.771]
[1771677148698,1.18389097,629.47,628.72,1.771]
[1771677149199,1.18389097,629.43,628.72,1.771]
[1771677152603,1.18389097,629.43,628.64,1.85734782]
[1771677153303,1.18389097,629.42,628.64,1.85734782]
[1771677155400,1.18389097,629.42,628.65,1.188]
[1771677158501,1.18389097,629.42,628.65,2.76872704]
[1771677162107,1.18389097,629.43,628.77,1.18968264]
[1771677163408,1.18389097,629.42,628.77,1.18968264]
[1771677168313,1.18389097,629.42,628.78,1.18968264]
[1771677173217,1.18389097,629.41,628.76,1.18968264]
[1771677178518,1.18389097,629.4,628.76,1.18968264]
[1771677179422,1.18389097,629.3,628.66,1.18968264]
[1771677181220,1.18389097,629.3,628.67,1.18968264]
[1771677181524,1.18389097,629.31,628.66,1.18968264]
[1771677182223,1.18389097,629.3,628.66,1.18968264]
[1771677182523,1.18389097,629.31,628.66,1.18968264]
[1771677183420,1.18389097,629.31,628.65,2.37768264]
[1771677185220,1.18389097,629.31,628.66,1.18968264]
[1771677185419,1.18389097,629.35,628.69,1.18968264]
[1771677187323,1.18389097,629.35,628.7,1.18968264]
[1771677188323,1.18389097,629.34,628.7,1.18968264]
[1771677192230,1.18389097,629.34,628.65,1.188]
[1771677193430,1.18389097,629.33,628.65,1.188]
[1771677197235,1.18389097,629.34,628.65,1.188]
[1771677200337,1.18389097,629.4,628.65,2.76872704]
[1771677203638,1.18389097,629.36,628.65,1.188]
[1771677204639,1.1854537,629.36,628.65,1.188]
[1771677211049,1.1854537,629.35,628.65,1.188]
[1771677211348,1.1854537,629.3,628.65,1.188]
[1771677214451,1.1854537,629.3,628.64,0.27662078]
[1771677217147,1.1854537,629.3,628.65,1.177]
[1771677221356,1.1854537,629.29,628.65,1.177]
[1771677222162,1.1854537,629.31,628.7,1.1910186]
[1771677222361,1.1854537,629.3,628.7,1.1910186]
[1771677226962,1.1854537,629.33,628.73,1.1910186]
[1771677227661,0.27659879,629.74,628.65,1.177]
[1771677227662,1.1854537,629.34,628.75,1.1910186]
[1771677228463,1.1854537,629.37,628.77,1.1910186]
[1771677232972,1.1854537,629.37,628.78,1.122]
[1771677250578,1.1854537,629.38,628.78,2.3130186]
[1771677251182,1.1854537,629.39,628.78,2.3130186]
[1771677251383,1.1854537,629.44,628.84,1.1910186]
[1771677252279,1.1854537,629.46,628.84,1.1910186]
[1771677254180,1.1854537,629.48,628.85,1.1910186]
[1771677255384,1.1854537,629.55,628.92,1.1910186]
[1771677256184,1.1854537,629.56,628.91,1.1910186]
[1771677257186,1.1854537,629.57,628.9,1.1910186]
[1771677259090,1.1854537,629.58,628.89,1.1910186]
[1771677259888,1.1854537,629.63,628.95,1.1910186]
[1771677260391,1.1854537,629.64,628.94,1.1910186]
[1771677261190,1.1854537,629.65,628.93,1.1910186]
[1771677261390,1.1854537,629.65,628.94,1.1910186]
[1771677262190,1.1854537,629.65,628.93,1.1910186]
[1771677263090,1.5869161,629.77,628.92,1.1910186]
[1771677263091,1.1854537,629.66,628.92,1.1910186]
[1771677265189,1.5869161,629.78,628.92,1.1910186]
[1771677265190,1.1854537,629.67,628.92,1.1910186]
[1771677266193,1.1854537,629.67,628.91,1.1910186]
[1771677269893,1.1854537,629.67,628.92,1.666]
[1771677282301,1.1854537,629.68,628.92,2.8570186]
[1771677283611,2.65688283,629.91,628.92,2.8570186]
[1771677283612,1.1854537,629.62,628.92,1.666]
[1771677284205,1.1854537,629.61,628.92,1.666]
[1771677285007,1.1854537,629.61,628.86,1.1910186]
[1771677286306,1.1854537,629.61,628.75,1.58072704]
[1771677286307,1.1854537,629.61,628.87,1.1910186]
[1771677288309,1.1854537,629.6,628.87,1.1910186]
[1771677288510,1.1854537,629.6,628.88,1.723]
[1771677289210,1.1854537,629.6,628.88,2.9140186]
[1771677290111,1.1854537,629.59,628.88,2.9140186]
[1771677291111,1.1854537,629.59,628.89,1.1910186]
[1771677292208,1.1854537,629.58,628.89,1.1910186]
[1771677293108,1.1854537,629.58,628.9,1.1910186]
[1771677294112,1.1854537,629.57,628.91,1.1910186]
[1771677295209,1.1854537,629.56,628.91,1.1910186]
[1771677296213,1.1854537,629.55,628.92,1.1910186]
[1771677297313,1.1854537,629.55,628.93,1.1910186]
[1771677299215,1.1854537,629.54,628.93,1.1910186]
[1771677300115,1.1854537,629.54,628.94,1.1910186]
[1771677305117,1.5869161,629.65,628.88,1.723]
[1771677305320,1.5869161,629.65,628.94,1.19064956]
[1771677305321,1.1870131,629.54,628.94,1.19064956]
[1771677305521,1.1870131,629.57,628.97,1.19064956]
[1771677306020,1.1870131,629.58,628.98,1.19064956]
[1771677306722,1.1870131,629.6,629.0,1.19064956]
[1771677308720,1.1870131,629.63,629.03,1.19064956]
[1771677312221,1.1870131,629.64,629.03,1.19064956]
[1771677317625,1.1870131,629.64,629.02,1.19064956]
[1771677318130,1.1870131,629.65,629.02,1.19064956]
[1771677329834,1.1870131,629.71,629.08,1.19064956]
[1771677330337,1.1870131,629.71,629.07,1.19064956]
[1771677330734,1.1870131,629.74,629.11,1.19064956]
[1771677330936,1.1870131,629.75,629.11,1.19064956]
[1771677331239,1.1870131,629.76,629.11,1.19064956]
[1771677332142,1.1870131,629.82,629.17,1.19064956]
[1771677332340,1.1870131,629.83,629.16,1.19064956]
[1771677332637,1.1870131,629.84,629.17,1.19064956]